fUSD/lending_fUSD_20250201
["ID","MTS","AMOUNT","RATE_DAILY","PERIOD"]
[351209941,1738429832755,-500.0,0.00015999,2]
[351209943,1738429832766,-500.0,0.00015999,2]
[351209945,1738429832775,-500.0,0.00015999,2]
[351209947,1738429832785,-500.0,0.00015999,2]
[351209949,1738429832795,-500.0,0.00015999,2]
[351209951,1738429832805,-500.0,0.00015999,2]
[351209953,1738429832814,-500.0,0.00015999,2]
[351209955,1738429832823,-500.0,0.00015999,2]
[351209957,1738429832834,-500.0,0.00015999,2]
[351209959,1738429832843,-500.0,0.00015999,2]
[351209961,1738429832853,-500.0,0.00015999,2]
[351209963,1738429832862,-500.0,0.00015999,2]
[351209965,1738429832871,-500.0,0.00015999,2]
[351209967,1738429832881,-500.0,0.00015999,2]
[351209969,1738429832890,-500.0,0.00015999,2]
[351209971,1738429832899,-500.0,0.00015999,2]
[351209973,1738429832908,-500.0,0.00015999,2]
[351209975,1738429832918,-500.0,0.00015999,2]
[351209977,1738429832927,-500.0,0.00015999,2]
[351209979,1738429832936,-500.0,0.00015999,2]
[351209981,1738429832947,-500.0,0.00015999,2]
[351209983,1738429832957,-500.0,0.00015999,2]
[351209985,1738429832966,-500.0,0.00015999,2]
[351209987,1738429832975,-500.0,0.00015999,2]
[351209989,1738429832984,-500.0,0.00015999,2]
[351209991,1738429832994,-500.0,0.00015999,2]
[351209993,1738429833003,-500.0,0.00015999,2]
[351209995,1738429833012,-500.0,0.00015999,2]
[351209997,1738429833021,-500.0,0.00015999,2]
[351209999,1738429833031,-500.0,0.00015999,2]
[351210001,1738429833041,-500.0,0.00015999,2]
[351210006,1738429833243,-500.0,0.00015999,2]
[351210007,1738429833254,-500.0,0.00015999,2]
[351210008,1738429833264,-500.0,0.00015999,2]
[351210009,1738429833273,-500.0,0.00015999,2]
[351210010,1738429833283,-500.0,0.00015999,2]
[351210011,1738429833292,-500.0,0.00015999,2]
[351210012,1738429833302,-500.0,0.00015999,2]
[351210013,1738429833311,-500.0,0.00015999,2]
[351210014,1738429833321,-500.0,0.00015999,2]
[351210015,1738429833331,-500.0,0.00015999,2]
[351210016,1738429833342,-500.0,0.00015999,2]
[351210017,1738429833351,-500.0,0.00015999,2]
[351210018,1738429833361,-500.0,0.00015999,2]
[351210019,1738429833371,-500.0,0.00015999,2]
[351210020,1738429833381,-500.0,0.00015999,2]
[351210021,1738429833391,-500.0,0.00015999,2]
[351210022,1738429833401,-217.16692028,0.00015999,2]
[351210023,1738429833411,-500.0,0.00015999,2]
[351210024,1738429833420,-500.0,0.00015999,2]
[351210025,1738429833430,-500.0,0.00015999,2]
[351210026,1738429833440,-500.0,0.00015999,2]
[351210027,1738429833451,-500.0,0.00015999,2]
[351210028,1738429833461,-500.0,0.00015999,2]
[351210029,1738429833471,-500.0,0.00015999,2]
[351210030,1738429833481,-500.0,0.00015999,2]
[351210031,1738429833491,-500.0,0.00015999,2]
[351210032,1738429833501,-500.0,0.00015999,2]
[351210033,1738429833511,-500.0,0.00015999,2]
[351210034,1738429833520,-500.0,0.00015999,2]
[351210035,1738429833529,-500.0,0.00015999,2]
[351210036,1738429833540,-500.0,0.00015999,2]
[351210037,1738429833550,-500.0,0.00015999,2]
[351210038,1738429833559,-500.0,0.00015999,2]
[351210039,1738429833569,-500.0,0.00015999,2]
[351210040,1738429833579,-500.0,0.00015999,2]
[351210041,1738429833589,-500.0,0.00015999,2]
[351210042,1738429833598,-500.0,0.00015999,2]
[351210043,1738429833608,-500.0,0.00015999,2]
[351210044,1738429833618,-500.0,0.00015999,2]
[351210045,1738429833627,-500.0,0.00015999,2]
[351210046,1738429833638,-500.0,0.00015999,2]
[351210047,1738429833647,-500.0,0.00015999,2]
[351210048,1738429833657,-500.0,0.00015999,2]
[351210049,1738429833666,-500.0,0.00015999,2]
[351210050,1738429833676,-500.0,0.00015999,2]
[351210051,1738429833686,-500.0,0.00015999,2]
[351210052,1738429833695,-500.0,0.00015999,2]
[351210053,1738429833705,-500.0,0.00015999,2]
[351210054,1738429833715,-500.0,0.00015999,2]
[351210055,1738429833724,-500.0,0.00015999,2]
[351210056,1738429833734,-500.0,0.00015999,2]
[351210057,1738429833744,-200.0,0.00015999,2]
[351210058,1738429833757,-500.0,0.00015999,2]
[351210059,1738429833766,-500.0,0.00015999,2]
[351210060,1738429833776,-425.23710223,0.00016,2]
[351210061,1738429833786,-150.0,0.00016,2]
[351210062,1738429833796,-193100.33811565,0.00016,2]
[351210063,1738429833809,-279042.76684876,0.00016,2]
[351210064,1738429833819,-407627.32348083,0.00016,2]
[351210065,1738429833831,-4932.0,0.00016,2]
[351210066,1738429833842,-282.7525456,0.00016,2]
[351210067,1738429833862,-725.4122558,0.00016,2]
[351210068,1738429833874,-4517.21755419,0.00016,2]
[351210069,1738429833895,-2716.87939388,0.00016,2]
[351210070,1738429833910,-5108.0,0.00016,2]
[351210072,1738429837737,-137888.02633524,0.00016,2]
[351210073,1738429837749,-20816.2119877,0.00016,2]
[351210074,1738429837791,-1707986.86888592,0.00016,2]
[351210075,1738429837801,-933807.45364013,0.00016,2]
[351210076,1738429837811,-300.0,0.00016,2]
[351210077,1738429837819,-1961.54,0.00016,2]
[351210078,1738429837829,-774.41,0.00016,2]
[351210079,1738429837839,-438.4,0.00016,2]
[351210080,1738429837848,-150.0,0.00016,2]
[351210081,1738429837857,-298.46,0.00016,2]
[351210082,1738429837866,-438.4,0.00016,2]
[351210083,1738429837875,-150.0,0.00016,2]
[351210084,1738429837884,-298.46,0.00016,2]
[351210085,1738429837893,-411.01,0.00016,2]
[351210086,1738429837902,-438.4,0.00016,2]
[351210087,1738429837911,-774.41,0.00016,2]
[351210088,1738429837920,-150.0,0.00016,2]
[351210089,1738429837929,-150.0,0.00016,2]
[351210090,1738429837937,-438.4,0.00016,2]
[351210091,1738429837946,-774.41,0.00016,2]
[351210092,1738429837957,-150.0,0.00016,2]
[351210093,1738429837966,-438.4,0.00016,2]
[351210094,1738429837976,-150.0,0.00016,2]
[351210095,1738429837986,-774.41,0.00016,2]
[351210096,1738429837995,-150.0,0.00016,2]
[351210097,1738429838005,-743.54,0.00016,2]
[351210098,1738429838015,-774.41,0.00016,2]
[351210099,1738429838027,-150.0,0.00016,2]
[351210100,1738429838036,-773.03,0.00016,2]
[351210101,1738429838045,-150.0,0.00016,2]
[351210102,1738429838055,-300.0,0.00016,2]
[351210103,1738429838065,-774.41,0.00016,2]
[351210104,1738429838075,-226.75,0.00016,2]
[351210105,1738429838084,-774.41,0.00016,2]
[351210106,1738429838093,-774.41,0.00016,2]
[351210107,1738429838102,-439.26,0.00016,2]
[351210108,1738429838111,-774.41,0.00016,2]
[351210110,1738429838121,-439.26,0.00016,2]
[351210112,1738429838130,-439.26,0.00016,2]
[351210114,1738429838138,-769.23,0.00016,2]
[351210116,1738429838147,-438.87,0.00016,2]
[351210118,1738429838156,-205.88,0.00016015,2]
[351210120,1738429838166,-2046.94746353,0.00016033,2]
[351210122,1738429838175,-2186.35103606,0.00016072,2]
[351210123,1738429838185,-2046.94746353,0.00016078,2]
[351210124,1738429838194,-499.1172782,0.00016082,2]
[351210126,1738429838203,-1000.0,0.000161,2]
[351210128,1738429838213,-3996.0201,0.000161,2]
[351210130,1738429838222,-2046.94746353,0.00016122,2]
[351210132,1738429838231,-499.1172782,0.00016164,2]
[351210134,1738429838240,-2046.94746353,0.00016167,2]
[351210136,1738429838250,-380.16,0.00016198,2]
[351210138,1738429838259,-266.3765,0.000162,2]
[351210140,1738429838268,-1616.7581,0.000162,2]
[351210142,1738429838277,-4800.61099752,0.000162,2]
[351210144,1738429838286,-2187.987,0.00016211,2]
[351210146,1738429838295,-2046.94746353,0.00016211,2]
[351210148,1738429838304,-156.11,0.00016232,2]
[351210150,1738429838313,-208.36531324,0.00016244,2]
[351210152,1738429838323,-2186.35103606,0.00016245,2]
[351210154,1738429838332,-499.1172782,0.00016247,2]
[351210156,1738429838341,-2046.94746353,0.00016256,2]
[351210158,1738429838350,-500.0,0.00016278,2]
[351210160,1738429838359,-18255.7273034,0.00016289,2]
[351210162,1738429838368,-7614.6769982,0.00016289,2]
[351210164,1738429838377,-217.3001,0.000163,2]
[351210166,1738429838387,-97268.9865,0.000163,2]
[351210168,1738429838397,-5000.0,0.000163,2]
[351210170,1738429838407,-171.09669425,0.000163,2]
[351210172,1738429838417,-3532.0,0.000163,2]
[351210174,1738429838428,-178.35121229,0.000163,2]
[351210176,1738429838437,-284.11620756,0.000163,2]
[351210178,1738429838447,-3325.03781554,0.000163,2]
[351210180,1738429838457,-4000.0,0.000163,2]
[351210182,1738429838466,-159.52274397,0.000163,2]
[351210184,1738429838476,-225.05620982,0.000163,2]
[351210186,1738429838485,-11684.6440628,0.000163,2]
[351210188,1738429838494,-2046.94746353,0.000163,2]
[351210190,1738429838504,-181.874039,0.000163,2]
[351210192,1738429838513,-284.11620752,0.00016311,2]
[351210195,1738429838525,-284.11620752,0.00016322,2]
[351210197,1738429838534,-499.1172782,0.00016329,2]
[351210199,1738429838543,-171.09669424,0.00016333,2]
[351210201,1738429838553,-284.11620752,0.00016333,2]
[351210203,1738429838562,-284.11620752,0.00016344,2]
[351210205,1738429838571,-284.11620752,0.00016356,2]
[351210207,1738429838582,-500.0,0.00016359,2]
[351210209,1738429838591,-500.0,0.0001636,2]
[351210210,1738429838600,-171.09669424,0.00016367,2]
[351210212,1738429838609,-284.11620752,0.00016367,2]
[351210214,1738429838618,-151.91644364,0.00016373,2]
[351210216,1738429838627,-500.0,0.00016373,2]
[351210218,1738429838636,-485.764662,0.00016373,2]
[351210220,1738429838645,-324.13327963,0.00016373,2]
[351210222,1738429838654,-500.0,0.00016373,2]
[351210224,1738429838665,-500.0,0.00016373,2]
[351210226,1738429838674,-500.0,0.00016373,2]
[351210228,1738429838683,-500.0,0.00016373,2]
[351210230,1738429838693,-284.11620752,0.00016378,2]
[351210232,1738429838703,-284.11620752,0.00016389,2]
[351210234,1738429838713,-17132.3929918,0.00016389,2]
[351210236,1738429838722,-7146.1211416,0.00016389,2]
[351210238,1738429838731,-1274.5058648,0.00016399,5]
[351210240,1738429838740,-500.0,0.00016399,2]
[351210242,1738429838750,-1064.0,0.000164,2]
[351210244,1738429838761,-1603190.55365458,0.000164,2]
[351210246,1738429838773,-763.50334123,0.000164,2]
[351210250,1738429838802,-5475.42017329,0.000164,2]
[351210252,1738429838813,-2929.28532401,0.000164,2]
[351210255,1738429838832,-7917.63,0.000164,2]
[351210351,1738429839848,-2552.75,0.000164,2]
[351210358,1738429839903,-6414.50661178,0.000164,2]
[351210376,1738429840062,-612.6,0.000164,2]
[351210598,1738429842897,-468.649,0.000164,2]
[351210599,1738429842909,-440.492,0.000164,2]
[351210600,1738429842952,-12210.19999998,0.000164,2]
[351210601,1738429843007,-58852.0981372,0.000164,2]
[351210602,1738429843114,-545487.26150422,0.000164,2]
[351210708,1738429845837,-729.2,0.000164,2]
[351210709,1738429845850,-525.61371807,0.000164,2]
[351210710,1738429845892,-254.02900001,0.000164,2]
[351210711,1738429845948,-4719.57656358,0.000164,2]
[351210712,1738429846002,-11082.22451594,0.000164,2]
[351210713,1738429846064,-4324.24397413,0.000164,2]
[351210714,1738429846081,-12016.27825608,0.000164,2]
[351210766,1738429914597,160.36,0.00010137,2]
[351210770,1738430364010,158.91,0.00016658,30]
[351210943,1738430791861,185.04,0.00010137,2]
[351211012,1738431032022,-717.74,0.00012954,2]
[351211013,1738431032032,-150.0,0.00013183,2]
[351211014,1738431032042,-132.252,0.00014249,2]
[351211015,1738431032077,-17.748,0.00014249,2]
[351211016,1738431032087,-150.0,0.00014249,2]
[351211017,1738431032096,-1012.87,0.00014662,2]
[351211018,1738431032106,-175.4,0.00014662,2]
[351211019,1738431032115,-393.3,0.00014685,2]
[351211020,1738431032125,-2508.65,0.00014693,2]
[351211021,1738431032139,-168.49,0.00014718,2]
[351211022,1738431032149,-958.08,0.00014721,2]
[351211023,1738431032159,-2852.01,0.00014723,2]
[351211024,1738431032171,-756.24,0.00014747,2]
[351211025,1738431032180,-300.0,0.00014765,2]
[351211026,1738431032190,-1000.0,0.00014766,2]
[351211027,1738431032201,-250.0,0.00014787,2]
[351211028,1738431032211,-159.53,0.0001493,2]
[351211029,1738431032222,-546.65,0.00014982,2]
[351211030,1738431032231,-150.0,0.0001505,2]
[351211031,1738431032241,-717.74,0.00015217,2]
[351211032,1738431032251,-300.0,0.000154,5]
[351211033,1738431032262,-700.0,0.000155,5]
[351211034,1738431032273,-1100.0,0.000156,5]
[351211035,1738431032282,-1500.0,0.000157,5]
[351211036,1738431032292,-756.852,0.000158,5]
[351211037,1738431032306,-1043.148,0.000158,5]
[351211038,1738431032315,-265.97087996,0.000158,2]
[351211039,1738431032325,-500.0,0.00015826,2]
[351211040,1738431032334,-1300.0,0.00015826,2]
[351211041,1738431032343,-300.0,0.00015899,2]
[351211042,1738431032352,-2934.2992,0.000159,2]
[351211043,1738431032360,-6500.2657,0.000159,2]
[351211045,1738431032370,-3936.23019401,0.000159,2]
[351211047,1738431032381,-2682.88560599,0.000159,2]
[351211049,1738431032390,-1000.0,0.000159,2]
[351211050,1738431032399,-346.27,0.000159,2]
[351211051,1738431032408,-346.27,0.000159,2]
[351211052,1738431032417,-346.27,0.000159,2]
[351211053,1738431032426,-346.27,0.000159,2]
[351211054,1738431032435,-346.27,0.000159,2]
[351211055,1738431032444,-346.27,0.000159,2]
[351211056,1738431032454,-346.27,0.000159,2]
[351211057,1738431032462,-346.27,0.000159,2]
[351211058,1738431032472,-346.27,0.000159,2]
[351211059,1738431032481,-346.27,0.000159,2]
[351211060,1738431032490,-300.0,0.000159,5]
[351211061,1738431032499,-159.53,0.00015926,2]
[351211062,1738431032508,-14915.2662,0.0001598,2]
[351211063,1738431032517,-266.3765,0.0001598,2]
[351211064,1738431032526,-15241.4894,0.0001598,2]
[351211065,1738431032535,-169.84136471,0.0001598,2]
[351211066,1738431032544,-2887.6371,0.0001598,2]
[351211067,1738431032553,-5000.0,0.0001598,2]
[351211068,1738431032562,-2710.83437077,0.0001598,2]
[351211069,1738431032571,-171.09669424,0.0001598,2]
[351211070,1738431032580,-1174.95610986,0.0001598,2]
[351211072,1738431032589,-21894.36402344,0.00016,4]
[351211074,1738431032598,-187.79591578,0.00016007,2]
[351211076,1738431032607,-2710.83437074,0.00016027,2]
[351211077,1738431032616,-166.60014812,0.0001607,2]
[351211078,1738431032626,-2710.83437074,0.00016073,2]
[351211079,1738431032635,-194.77000033,0.00016079,2]
[351211080,1738431032645,-500.0,0.00016079,2]
[351211081,1738431032654,-500.0,0.00016079,2]
[351211082,1738431032663,-500.0,0.00016079,2]
[351211083,1738431032673,-500.0,0.00016079,2]
[351211084,1738431032682,-500.0,0.00016079,2]
[351211085,1738431032691,-500.0,0.00016079,2]
[351211086,1738431032700,-500.0,0.00016079,2]
[351211087,1738431032709,-500.0,0.00016079,2]
[351211088,1738431032719,-500.0,0.00016079,2]
[351211089,1738431032728,-491.71669203,0.00016079,2]
[351211090,1738431032737,-500.0,0.00016079,2]
[351211091,1738431032746,-2455.24304778,0.0001608,2]
[351211092,1738431032757,-52840.89194108,0.0001608,2]
[351211093,1738431032768,-409320.00000006,0.0001608,2]
[351211094,1738431032779,-1850.64511888,0.0001608,2]
[351211095,1738431032798,-6289.68365791,0.0001608,2]
[351211096,1738431032813,-4258.01555063,0.0001608,2]
[351211100,1738431037949,-3730.76755454,0.0001608,2]
[351211101,1738431038005,-21100.0,0.0001608,2]
[351211102,1738431038018,-14407.70685543,0.0001608,2]
[351211103,1738431038030,-4019.66887,0.0001608,2]
[351211104,1738431038041,-11357.50001164,0.0001608,2]
[351211105,1738431038053,-20592.95142454,0.0001608,2]
[351211106,1738431038064,-4200.0,0.0001608,2]
[351211107,1738431038075,-3103.57100234,0.0001608,2]
[351211108,1738431038115,-277.40067284,0.0001608,2]
[351211109,1738431038171,-15011.66425328,0.0001608,2]
[351211110,1738431038281,-11261.25041509,0.0001608,2]
[351211111,1738431038293,-465.92840255,0.0001608,2]
[351211112,1738431038336,-964.63217687,0.0001608,2]
[351211113,1738431038349,-5000.0957014,0.0001608,2]
[351211114,1738431038361,-1436.06576,0.0001608,2]
[351211130,1738431040052,-2045.656178,0.0001608,2]
[351211136,1738431040113,-1365.65149211,0.0001608,2]
[351211143,1738431040276,-2379.51799766,0.0001608,2]
[351211144,1738431040288,-460.7835039,0.0001608,2]
[351211145,1738431040389,-335.03988461,0.0001608,2]
[351211146,1738431040400,-5755.88586317,0.0001608,2]
[351211408,1738431043020,-375.08,0.0001608,2]
[351211410,1738431043030,-142.07420525,0.0001608,2]
[351211416,1738431043076,-122251.20966813,0.0001608,2]
[351211432,1738431043237,-402336.01104028,0.0001608,2]
[351211730,1738431046123,-78031.38054414,0.0001608,2]
[351211735,1738431046167,-656622.719402,0.0001608,2]
[351211737,1738431046178,-821.25441959,0.0001608,2]
[351211739,1738431046190,-10571.10000002,0.0001608,2]
[351211743,1738431046213,-259.11273631,0.0001608,2]
[351211835,1738431233450,158.91,0.00016658,30]
[351211837,1738431849756,1000.0,0.00023,120]
[351211838,1738431850567,1000.0,0.00023,120]
[351211839,1738431851472,2270.18709749,0.00023,120]
[351211840,1738431851594,1000.0,0.00023,120]
[351211841,1738431852547,1000.0,0.00023,120]
[351211842,1738431853671,1000.0,0.00023,120]
[351211914,1738431954360,-685.67,0.00012931,2]
[351211915,1738431954382,-550.0,0.00013,2]
[351211916,1738431954405,-150.0,0.00013095,2]
[351211917,1738431954426,-1000.0,0.00014,4]
[351211918,1738431954448,-150.0,0.000143,2]
[351211919,1738431954470,-150.0,0.000143,2]
[351211920,1738431954493,-723.16299,0.000143,2]
[351211921,1738431954513,-1000.0,0.00014373,4]
[351211922,1738431954533,-150.0,0.00014767,2]
[351211923,1738431954555,-505.91,0.00014783,2]
[351211924,1738431954576,-500.0,0.00014868,2]
[351211925,1738431954597,-509.81,0.00014919,2]
[351211926,1738431954618,-600.0,0.00015,2]
[351211927,1738431954638,-1000.0,0.00015062,2]
[351211928,1738431954660,-22325.44701,0.0001509,2]
[351211929,1738431955540,-1574.55299,0.0001509,2]
[351211930,1738432022048,158.28,0.00010137,2]
[351212058,1738432059797,158.91,0.00016658,30]
[351212059,1738432064061,250.0,0.00015082,2]
[351212063,1738432232437,-369.03,0.00015093,2]
[351212064,1738432232447,-327.59044734,0.00015093,2]
[351212065,1738432232487,-47.13955266,0.00015093,2]
[351212066,1738432232497,-376.6,0.00015093,2]
[351212067,1738432232506,-150.0,0.00015117,2]
[351212068,1738432232515,-789.58,0.00015141,2]
[351212069,1738432232526,-169.83,0.00015179,2]
[351212070,1738432232536,-685.67,0.00015195,2]
[351212071,1738432232546,-173.64,0.00015319,2]
[351212072,1738432232555,-151.69,0.00015593,2]
[351212073,1738432232566,-152.68,0.00015593,2]
[351212074,1738432232575,-151.08,0.00015593,2]
[351212075,1738432232585,-150.55,0.00015593,2]
[351212076,1738432232594,-468.5376,0.00015855,2]
[351212077,1738432232603,-300.0,0.00015899,2]
[351212078,1738432232613,-314.41763898,0.000159,2]
[351212079,1738432232627,-1649.77240014,0.000159,2]
[351212080,1738432232636,-669.5971,0.000159,2]
[351212081,1738432232646,-180.8044,0.000159,2]
[351212082,1738432232655,-597.7266,0.000159,2]
[351212084,1738432232664,-1428.64699135,0.0001592,2]
[351212086,1738432232677,-1184.17281378,0.0001592,2]
[351212088,1738432232688,-1387.18019487,0.0001592,2]
[351212089,1738432232697,-1659.00822492,0.00015956,2]
[351212090,1738432232715,-305.18181414,0.00015956,2]
[351212092,1738432232724,-665.83685805,0.00015967,2]
[351212095,1738432238078,-2026.3788,0.000159,2]
[351212096,1738432238088,-334.16314195,0.00015967,2]
[351212097,1738432238097,-155.0,0.00015979,2]
[351212098,1738432238106,-934.9099,0.0001598,2]
[351212099,1738432238115,-1668.3938,0.0001598,2]
[351212100,1738432238125,-160.96792776,0.0001598,2]
[351212101,1738432238134,-2975.5585,0.0001598,2]
[351212102,1738432238143,-167.4919,0.0001598,2]
[351212103,1738432238152,-1335.1112,0.0001598,2]
[351212104,1738432238162,-5000.0,0.0001598,2]
[351212105,1738432238172,-1677.93973292,0.0001598,2]
[351212106,1738432238181,-412.9332171,0.00015999,2]
[351212107,1738432238190,-1550.98117392,0.00016,2]
[351212108,1738432238216,-498.15,0.00016,2]
[351212109,1738432238234,-1697.86882608,0.00016,2]
[351212110,1738432238244,-24849.00448104,0.00016,3]
[351212111,1738432238345,-4631.93571866,0.00016,3]
[351212112,1738432240471,-300.15431564,0.00016,3]
[351212113,1738432240528,-511.2726454,0.00016,3]
[351212114,1738432240631,-254.35761203,0.00016,3]
[351212124,1738432243447,-10270.9170718,0.00016,3]
[351212125,1738432243553,-124878.07919316,0.00016,3]
[351212126,1738432243566,-150.16,0.00016,2]
[351212127,1738432243578,-993.38,0.00016,2]
[351212128,1738432243589,-298.46,0.00016,2]
[351212129,1738432243599,-298.46,0.00016,2]
[351212130,1738432243611,-1964.19003906,0.00016011,2]
[351212131,1738432243621,-1677.93973292,0.00016026,2]
[351212132,1738432243632,-1964.19003906,0.00016067,2]
[351212133,1738432243643,-166.60014813,0.0001607,2]
[351212134,1738432243656,-1677.93973292,0.00016072,2]
[351212135,1738432243667,-2621.707,0.00016079,2]
[351212136,1738432243678,-169.795,0.00016079,2]
[351212137,1738432243689,-265475.11015503,0.0001608,2]
[351212146,1738432246419,-252.59280325,0.0001608,2]
[351212170,1738432649885,-14658.8,0.00015239,2]
[351212171,1738432649908,-152.61,0.00015249,2]
[351212172,1738432649930,-1000.0,0.00015279,2]
[351212173,1738432649954,-150.0,0.00015282,2]
[351212174,1738432649976,-167.94,0.00015285,2]
[351212175,1738432649997,-172.4,0.00015289,2]
[351212176,1738432650018,-152.61,0.00015325,2]
[351212177,1738432650040,-150.0,0.00015603,2]
[351212178,1738432650063,-1671.82121618,0.0001598,2]
[351212179,1738432650086,-1605.35310786,0.0001598,2]
[351212180,1738432650109,-3748.72724513,0.00016,2]
[351212181,1738432656387,500.0,0.00015271,2]
[351212182,1738432659814,640.92,0.00015271,2]
[351212183,1738432689756,243.35,0.00015278,2]
[351212184,1738432702116,159.23294858,0.0001598,2]
[351212185,1738432709889,2782.477,0.00015758,2]
[351212186,1738432710037,169.795,0.00015758,2]
[351212188,1738432774530,315.0,0.0001576,2]
[351212189,1738432822619,636.43,0.00013352,2]
[351212190,1738432822837,636.43,0.00015616,2]
[351212191,1738432868267,160.96792776,0.0001598,2]
[351212192,1738432870526,125.13555449,0.0001592,2]
[351212193,1738432875282,158.91,0.00016658,30]
[351212194,1738432901928,211.99,0.00010137,2]
[351212197,1738433073216,550.0,0.00013,2]
[351212198,1738433074290,600.0,0.00015,2]
[351212358,1738433432373,-172.4,0.00015183,2]
[351212359,1738433432387,-1000.0,0.00015216,2]
[351212360,1738433432401,-500.0,0.0001526,3]
[351212361,1738433432411,-761.94798962,0.00015726,2]
[351212362,1738433432422,-761.94798962,0.00015808,2]
[351212363,1738433432433,-761.94798962,0.0001589,2]
[351212364,1738433432444,-761.94798962,0.00015973,2]
[351212365,1738433432455,-214.907369,0.0001598,3]
[351212366,1738433432467,-1504.63909458,0.0001598,2]
[351212367,1738433432482,-1444.81779702,0.0001598,2]
[351212368,1738433432493,-3031.99957577,0.00016,3]
[351212369,1738433432503,-5000.0,0.00016,4]
[351212370,1738433432514,-181.0,0.0001602,2]
[351212371,1738433432529,-1504.63909454,0.00016027,2]
[351212372,1738433432543,-1444.817797,0.00016027,2]
[351212373,1738433432555,-761.94798962,0.00016027,2]
[351212374,1738433432567,-166.60014813,0.0001607,2]
[351212375,1738433432579,-1504.63909454,0.00016073,2]
[351212376,1738433432590,-1444.817797,0.00016073,2]
[351212377,1738433432602,-1121.82603401,0.00016079,5]
[351212378,1738433432614,-318.22362603,0.00016079,2]
[351212379,1738433432625,-857.0,0.00016079,2]
[351212380,1738433432636,-40749.89348948,0.0001608,2]
[351212381,1738433432873,-5211.1,0.0001608,2]
[351212382,1738433432890,-10518.0,0.0001608,2]
[351212385,1738433432917,-105142.03999994,0.0001608,2]
[351212917,1738433438286,-750.3977975,0.0001608,2]
[351212935,1738433438445,-324.57198834,0.0001608,2]
[351213224,1738433441240,-770.0,0.00016079,2]
[351213227,1738433441250,-253.55,0.0001608,2]
[351213276,1738433443570,-277457.93184712,0.0001608,2]
[351213277,1738433446539,-12181.7088354,0.0001608,2]
[351213294,1738433664581,594.52,0.00013372,2]
[351213296,1738433739407,185.09,0.00010137,2]
[351213297,1738433882820,158.91,0.00016658,30]
[351213298,1738434031392,150.0,0.00020672,120]
[351213299,1738434040171,774.30326074,0.00023,120]
[351213300,1738434090752,150.0,0.0002114,120]
[351213301,1738434123890,208.65976059,0.00023,120]
[351213302,1738434151382,150.0,0.00021566,120]
[351213303,1738434191445,500.0,0.00023,120]
[351213304,1738434197075,2000.0,0.00023,120]
[351213305,1738434205882,500.0,0.00023,120]
[351213306,1738434210798,150.0,0.00022211,120]
[351213307,1738434217179,200.0,0.00023,120]
[351213308,1738434270712,150.0,0.00022096,120]
[351213309,1738434303754,1792.34064651,0.00023,120]
[351213310,1738434308423,25875.56701,0.00012,2]
[351213311,1738434327578,1161.07146123,0.00023,120]
[351213312,1738434330740,150.0,0.00021814,120]
[351213313,1738434332842,173.49948709,0.0002,120]
[351213314,1738434344736,285.05019669,0.00022,120]
[351213315,1738434350022,1333.0,0.00021781,120]
[351213316,1738434390740,150.0,0.00021086,120]